bitfinex/quotes_ETHUSD_20240828
["timestamp","ask_amount","ask_price","bid_price","bid_amount"]
[1724863740719,6.26376,2502.7,2501.4,6.41817]
[1724863740720,3.9969,2502.0,2501.4,6.41817]
[1724863740915,4.396223,2502.2,2501.4,6.41817]
[1724863741115,3.99684,2502.0,2501.4,6.41816]
[1724863741317,3.99684,2502.0,2501.4,3.99766]
[1724863741528,3.99684,2502.0,2501.4,4.397426]
[1724863741729,3.99684,2502.0,2501.5,3.99759]
[1724863741962,3.99704,2501.9,2501.4,4.397376]
[1724863742169,3.99684,2502.0,2501.4,3.99761]
[1724863742317,3.99714,2501.8,2501.3,3.9979]
[1724863743067,3.99731,2501.7,2501.2,3.99807]
[1724863743356,7.99441,2501.8,2501.2,3.99796]
[1724863743513,3.99752,2501.6,2501.0,7.99661]
[1724863743718,3.99784,2501.4,2500.8,3.99864]
[1724863743920,3.99784,2501.4,2500.9,3.99846]
[1724863744357,3.99784,2501.4,2500.8,7.99727]
[1724863744560,3.99784,2501.4,2500.9,3.99855]
[1724863744724,3.99816,2501.2,2500.7,0.22626]
[1724863744918,3.99776,2501.4,2499.9,2.3309]
[1724863744919,3.9988,2500.8,2499.9,2.3309]
[1724863745121,4.797338,2501.4,2500.0,0.07999012]
[1724863745122,3.99847,2501.0,2500.0,0.07999012]
[1724863745367,5.4183,2501.3,2500.3,3.99949]
[1724863745368,3.99884,2500.8,2500.3,3.99949]
[1724863745660,3.99833,2501.1,2500.0,0.256399]
[1724863745868,7.99667,2501.1,2500.5,3.9991]
[1724863746054,3.99833,2501.1,2500.5,3.99906]
[1724863746252,9.41624,2501.3,2500.5,3.99909]
[1724863746419,13.41424,2501.3,2500.7,3.99877]
[1724863746762,3.99825,2501.1,2500.5,4.40696383]
[1724863747631,4.69530856,2502.1,2500.9,3.99845]
[1724863747632,3.9977,2501.5,2500.9,3.99845]
[1724863747886,3.9977,2501.5,2501.0,3.99836]
[1724863748042,6.46377,2501.7,2500.5,6.67166383]
[1724863748043,2.4664,2501.7,2501.2,3.99799]
[1724863748248,6.46369,2501.7,2501.0,3.99826]
[1724863748444,6.46369,2501.7,2501.2,3.99803]
[1724863748766,0.54208488,2502.1,2501.2,0.399803]
[1724863748767,2.4664,2502.1,2501.2,0.399803]
[1724863748968,2.4664,2502.1,2501.3,4.07773813]
[1724863748969,3.99674,2502.1,2501.3,4.07773813]
[1724863749121,3.99674,2502.1,2501.2,2.2646]
[1724863749122,0.54208488,2502.0,2501.2,2.2646]
[1724863749326,2.4664,2502.4,2501.2,2.2646]
[1724863749327,6.46261,2502.4,2501.7,3.99726]
[1724863749558,3.99674,2502.1,2501.5,3.99751]
[1724863749731,4.53881488,2502.1,2501.5,3.99749]
[1724863749931,3.99691,2502.0,2501.5,3.99749]
[1724863750131,4.53881488,2502.1,2501.5,7.99497]
[1724863750425,7.99289,2502.3,2501.5,4.819623]
[1724863750624,3.0,2502.2,2501.5,4.819623]
[1724863750826,3.99674,2502.1,2501.6,3.99731]
[1724863751028,3.0,2502.2,2501.6,3.99731]
[1724863751339,3.0,2502.2,2501.5,4.819623]
[1724863751340,3.99668,2502.1,2501.5,4.819623]
[1724863751548,7.99341,2502.1,2501.5,3.99748]
[1724863752479,3.99668,2502.1,2501.5,3.99748]
[1724863752657,3.99668,2502.1,2501.3,8.22208]
[1724863752868,3.0,2502.2,2501.2,3.99805]
[1724863752869,1.24175288,2502.0,2501.2,3.99805]
[1724863753030,7.99465,2501.7,2501.1,3.99823]
[1724863753340,7.99465,2501.7,2501.1,7.99637]
[1724863753341,3.99729,2501.7,2501.1,7.99637]
[1724863753543,3.99729,2501.7,2501.1,3.99814]
[1724863754272,3.99786,2501.4,2500.7,3.99879]
[1724863754456,3.99786,2501.4,2500.8,3.99863]
[1724863754867,0.41871834,2501.3,2500.8,3.99863]
[1724863755062,4.41663834,2501.3,2500.8,3.99863]
[1724863755384,4.41663834,2501.3,2500.7,3.99879]
[1724863755385,3.99809,2501.2,2500.7,3.99879]
[1724863755796,3.99809,2501.2,2500.7,3.99878]
[1724863756279,0.41871834,2501.3,2501.0,3.99837]
[1724863757166,0.41871834,2501.3,2501.0,3.9983]
[1724863757342,0.41871834,2501.3,2501.2,3.99808]
[1724863757944,0.41871834,2501.3,2501.1,3.99818]
[1724863758437,0.41871834,2501.3,2500.9,3.99845]
[1724863759279,0.41871834,2501.3,2500.3,4.40017]
[1724863759280,0.86036617,2501.3,2500.3,4.40012]
[1724863759453,3.99825,2501.1,2500.3,3.99942]
[1724863759783,3.99825,2501.1,2500.5,3.99919]
[1724863759784,3.99851,2501.0,2500.5,3.99919]
[1724863760235,3.99858,2500.9,2500.3,3.99939]
[1724863760440,3.99875,2500.8,2500.3,3.99939]
[1724863760665,3.99858,2500.9,2500.3,3.99936]
[1724863760886,3.99833,2501.1,2500.5,7.99836]
[1724863761055,3.99833,2501.1,2500.6,3.99903]
[1724863761260,2.4699,2501.2,2500.6,3.999]
[1724863761462,2.4699,2501.2,2500.8,3.99869]
[1724863762003,0.41871834,2501.3,2500.7,0.07997142]
[1724863762244,0.41871834,2501.3,2501.1,3.99823]
[1724863762526,0.41871834,2501.3,2501.0,3.99827]
[1724863763323,0.41871834,2501.3,2500.8,3.99858]
[1724863763324,8.85635217,2501.3,2500.8,3.99858]
[1724863763530,8.85635217,2501.3,2500.7,3.99884]
[1724863763531,4.41665834,2501.3,2500.7,3.99884]
[1724863763915,0.41871834,2501.3,2500.8,3.99871]
[1724863764420,0.41871834,2501.3,2501.0,3.99829]
[1724863765138,0.41871834,2501.3,2500.8,3.99861]
[1724863765743,4.41665834,2501.3,2500.8,3.99861]
[1724863765978,8.41466834,2501.3,2500.8,3.99861]
[1724863766150,3.99809,2501.2,2500.7,3.99888]
[1724863766351,0.41871834,2501.3,2500.8,3.99859]
[1724863766567,0.41871834,2501.3,2500.6,3.99891]
[1724863766568,4.41664834,2501.3,2500.6,3.99891]
[1724863766755,4.85831317,2501.3,2500.6,3.99891]
[1724863766949,0.41871834,2501.3,2500.6,3.99891]
[1724863767160,4.41673834,2501.3,2500.8,3.99871]
[1724863767475,3.99808,2501.2,2500.6,3.99891]
[1724863767675,4.41673834,2501.3,2500.7,3.99874]
[1724863767877,8.41479834,2501.3,2500.7,3.99874]
[1724863768175,3.99815,2501.2,2500.7,3.99874]
[1724863768373,3.99815,2501.2,2500.6,7.99784]
[1724863768970,3.99824,2501.1,2500.6,7.99786]
[1724863769285,5.25821817,2501.3,2500.6,3.99891]
[1724863769450,0.41871834,2501.3,2501.0,3.99839]
[1724863769650,4.41665834,2501.3,2500.8,3.99859]
[1724863770675,3.99808,2501.2,2500.8,3.99859]
[1724863770892,4.41665834,2501.3,2500.8,3.99859]
[1724863771243,0.41871834,2501.3,2500.9,3.9985]
[1724863771596,0.41871834,2501.3,2501.0,3.99839]
[1724863771756,0.41871834,2501.3,2501.1,3.99824]
[1724863771956,0.41871834,2501.3,2501.1,3.99815]
[1724863772265,0.41871834,2501.3,2501.2,3.99808]
[1724863772463,0.41871834,2501.3,2500.9,3.99844]
[1724863772635,0.41871834,2501.3,2500.8,3.99863]
[1724863772636,3.9981,2501.2,2500.8,3.99863]
[1724863772835,4.43978183,2501.2,2500.6,7.99781]
[1724863773072,0.96080322,2501.3,2500.8,3.9986]
[1724863773073,0.41871834,2501.3,2500.8,3.9986]
[1724863773279,4.41666834,2501.3,2500.8,3.9986]
[1724863773500,5.25812317,2501.3,2500.8,3.9986]
[1724863773678,3.99825,2501.1,2500.6,3.99892]
[1724863773887,3.99809,2501.2,2500.6,3.99892]
[1724863774066,7.99629,2501.2,2500.7,3.99885]
[1724863774400,0.41875106,2501.1,2500.7,3.99884]
[1724863774608,0.41875106,2501.1,2500.6,3.99892]
[1724863774754,4.41699106,2501.1,2500.6,7.99788]
[1724863774948,0.41875106,2501.1,2500.7,3.99887]
[1724863775804,4.41703106,2501.1,2500.6,3.99901]
[1724863776009,7.31606065,2501.1,2500.4,3.99924]
[1724863776156,3.99873,2500.8,2500.2,3.99952]
[1724863776357,3.99873,2500.8,2500.3,3.99943]
[1724863777010,3.99895,2500.7,2500.2,3.99952]
[1724863777166,6.79030106,2501.1,2500.3,0.07998622]
[1724863777362,6.79030106,2501.1,2500.4,3.99921]
[1724863777363,3.9985,2501.0,2500.4,3.99921]
[1724863777565,3.9986,2500.9,2500.4,3.99921]
[1724863777960,3.9985,2501.0,2500.4,7.99846]
[1724863778158,1.07886411,2501.0,2500.2,3.99956]
[1724863778498,7.99753,2500.8,2500.2,3.99956]
[1724863778709,7.99754,2500.8,2500.2,7.99913]
[1724863778877,3.99872,2500.8,2500.3,3.99951]
[1724863779311,2.79195106,2501.1,2500.3,3.99951]
[1724863779312,2.79195106,2501.1,2500.4,3.99932]
[1724863780093,3.99848,2501.0,2500.5,3.99919]
[1724863780801,3.99866,2500.9,2500.4,3.99932]
[1724863781048,3.99893,2500.7,2500.3,3.99951]
[1724863782013,3.99913,2500.6,2500.1,3.99982]
[1724863782661,3.9994,2500.4,2499.8,4.22965]
[1724863782873,3.9994,2500.4,2499.8,4.00024]
[1724863783018,3.99965,2500.3,2499.7,4.00036]
[1724863783357,3.99968,2500.2,2499.7,4.00036]
[1724863783558,4.00048,2499.7,2499.1,4.00132]
[1724863783771,4.00048,2499.7,2499.1,8.402802]
[1724863783917,4.00048,2499.7,2499.1,0.400132]
[1724863784117,4.00077,2499.6,2499.1,0.400132]
[1724863784317,4.00081,2499.5,2499.0,4.00156]
[1724863784553,4.00033,2499.8,2498.0,0.4007]
[1724863784766,4.00138,2499.2,2498.1,0.4007]
[1724863784974,6.3946,2499.7,2499.1,4.00142]
[1724863785283,4.00081,2499.5,2499.0,4.08160335]
[1724863785449,6.3946,2499.7,2499.0,4.08160335]
[1724863785450,4.00073,2499.6,2499.0,4.08160335]
[1724863786375,4.00081,2499.5,2499.0,0.08002335]
[1724863786577,4.00081,2499.5,2498.8,4.0019]
[1724863786748,4.00131,2499.2,2498.5,4.00237]
[1724863786948,0.45308031,2499.5,2498.5,4.00237]
[1724863786949,4.0012,2499.3,2498.5,4.00237]
[1724863787276,4.0012,2499.3,2498.7,4.00206]
[1724863787970,4.0012,2499.3,2498.7,4.00199]
[1724863788175,6.3947,2499.7,2499.1,4.00143]
[1724863788176,6.39465,2499.7,2499.1,4.00143]
[1724863788337,6.39465,2499.7,2499.1,8.00278]
[1724863788538,10.39523,2499.7,2499.1,4.00135]
[1724863788775,7.034115,2499.7,2499.1,8.00268]
[1724863788986,4.00024,2499.9,2499.2,0.0800187]
[1724863789300,4.00024,2499.9,2499.3,4.00101]
[1724863789788,0.41900242,2499.8,2499.3,4.00101]
[1724863790093,4.41932242,2499.8,2499.3,4.00101]
[1724863790381,4.00067,2499.6,2499.1,4.00132]
[1724863790537,4.84245624,2499.7,2499.1,8.00265]
[1724863790740,4.84245624,2499.7,2499.1,4.00132]
[1724863790741,8.00106,2499.7,2499.1,4.00132]
[1724863791152,4.0005,2499.7,2499.1,4.00132]
[1724863791670,4.00075,2499.6,2499.1,4.00132]
[1724863791874,4.84277524,2499.6,2499.1,4.00132]
[1724863792051,4.0005,2499.7,2499.2,4.00125]
[1724863792479,8.00106,2499.7,2499.1,4.00132]
[1724863792656,4.0005,2499.7,2499.1,4.00132]
[1724863792852,4.00064,2499.6,2499.1,4.00132]
[1724863793480,4.0008,2499.5,2498.9,8.00327]
[1724863793644,8.0017,2499.5,2498.9,4.00162]
[1724863793842,8.0017,2499.5,2498.7,4.00197]
[1724863793843,4.00115,2499.3,2498.7,4.00197]
[1724863794061,4.00128,2499.2,2498.7,4.00197]
[1724863794375,7.05823,2499.5,2498.8,0.08003177]
[1724863794586,2.67620242,2499.8,2498.6,0.08002909]
[1724863794746,3.0,2499.7,2499.3,4.00102]
[1724863794948,3.0,2499.7,2499.1,4.00128]
[1724863795147,4.00066,2499.6,2499.1,4.00128]
[1724863795355,4.00087,2499.5,2498.9,4.00165]
[1724863795558,3.54208488,2499.7,2498.6,0.23914]
[1724863795559,7.00059,2499.7,2499.0,4.08160666]
[1724863795851,7.00059,2499.7,2499.1,0.40816067]
[1724863796068,4.00072,2499.6,2499.1,4.00142]
[1724863796387,4.00072,2499.6,2499.0,4.00149]
[1724863796957,3.0,2499.7,2498.6,4.00214]
[1724863797185,4.00139,2499.2,2498.6,4.00214]
[1724863797380,4.00139,2499.2,2498.7,4.00198]
[1724863797573,4.00081,2499.5,2498.6,4.00209]
[1724863797776,4.00081,2499.5,2498.7,0.400209]
[1724863797968,4.00081,2499.5,2499.0,4.00158]
[1724863798673,4.00121,2499.3,2498.8,4.0018]
[1724863798876,4.00096,2499.4,2498.9,4.00174]
[1724863799293,4.00129,2499.2,2498.7,0.400209]
[1724863799558,4.00129,2499.2,2498.7,4.00207]
[1724863799783,8.54447488,2499.3,2498.7,4.00196]
[1724863799985,4.00114,2499.3,2498.7,4.00196]
[1724863800164,4.00145,2499.1,2498.6,4.00213]
[1724863800370,4.00114,2499.3,2498.8,4.00187]
[1724863800581,5.2572,2499.7,2499.1,4.00133]
[1724863800760,5.2572,2499.7,2499.2,4.00115]
[1724863801097,4.00145,2499.1,2498.7,4.00197]
[1724863801258,4.00145,2499.1,2498.4,4.00242]
[1724863801259,6.34475,2499.1,2498.4,4.00242]
[1724863801459,6.34475,2499.1,2498.5,4.00225]
[1724863801658,6.34475,2499.1,2498.6,4.00213]
[1724863801890,4.00129,2499.2,2498.7,4.00206]
[1724863802161,4.00129,2499.2,2498.6,4.00213]
[1724863802162,4.00129,2499.2,2498.8,4.0019]
[1724863802358,7.00054,2499.7,2499.0,4.00149]
[1724863802359,7.0005,2499.7,2499.0,4.00149]
[1724863802581,7.0005,2499.7,2499.1,0.40815284]
[1724863802783,7.0005,2499.7,2499.2,4.00115]
[1724863802981,2.76230242,2499.8,2498.9,0.08002128]
[1724863803303,6.76262242,2499.8,2499.1,4.00135]
[1724863803507,6.76262242,2499.8,2499.1,4.00139]
[1724863803703,6.76262242,2499.8,2499.3,4.00103]
[1724863804034,0.41900242,2499.8,2499.5,8.00152]
[1724863804313,0.41900242,2499.8,2499.7,4.00048]
[1724863804520,0.41900242,2499.8,2499.7,8.00096]
[1724863804819,0.41900242,2499.8,2499.7,8.08095958]
[1724863804968,0.41900242,2499.8,2499.7,8.88905554]
[1724863805610,0.41900242,2499.8,2499.7,4.80857596]
[1724863805811,0.41900242,2499.8,2499.7,4.00048]
[1724863805976,0.41900242,2499.8,2499.5,4.00072]
[1724863806402,0.41900242,2499.8,2498.9,4.40235]
[1724863806581,0.41900242,2499.8,2498.9,4.00165]
[1724863806582,7.41936242,2499.8,2498.9,4.00165]
[1724863806800,0.27866024,2499.7,2499.1,4.00141]
[1724863806983,0.27866024,2499.7,2498.9,4.00165]
[1724863806984,4.00064,2499.6,2498.9,4.00164]
[1724863807227,4.00097,2499.4,2498.7,4.00194]
[1724863807386,0.42793002,2499.5,2498.5,3.79518]
[1724863807387,8.00268,2499.2,2498.5,3.79518]
[1724863807701,1.331598,2499.1,2498.5,3.79518]
[1724863808015,0.41910452,2499.3,2499.0,4.00159]
[1724863808823,0.41910452,2499.3,2499.1,4.0014]
[1724863809115,0.41910452,2499.3,2499.2,4.08130362]
[1724863809267,0.06969694,2501.5,2499.7,4.00037]
[1724863809268,2.3133,2500.4,2499.7,4.00037]
[1724863809468,2.3133,2500.4,2500.0,3.99999]
[1724863809778,0.41896843,2500.3,2500.2,3.99968]
[1724863810000,0.41896843,2500.3,2500.0,3.99986]
[1724863810402,0.41896843,2500.3,2499.8,4.00021]
[1724863810616,0.41896843,2500.3,2499.9,4.00012]
[1724863811439,0.41896843,2500.3,2500.2,3.99968]
[1724863811736,0.41896843,2500.3,2500.2,8.07933948]
[1724863812117,6.3381,2501.4,2500.6,3.99903]
[1724863812326,6.3381,2501.4,2500.8,3.99865]
[1724863812327,0.41888369,2501.1,2500.8,3.99865]
[1724863812531,0.41888369,2501.1,2501.0,13.3191168]
[1724863812790,2.3403,2502.3,2501.8,3.9971]
[1724863812931,0.41876964,2501.9,2501.8,8.39393]
[1724863813140,2.3403,2502.9,2502.3,3.99627]
[1724863813342,2.3403,2502.9,2502.1,0.07992609]
[1724863813543,0.47397405,2503.8,2502.2,2.9287]
[1724863813544,0.41855512,2503.1,2502.2,2.9287]
[1724863813785,1.602853,2504.8,2503.0,3.9952]
[1724863813786,2.3232,2503.7,2503.0,3.9952]
[1724863814081,3.99442,2503.5,2502.6,3.99582]
[1724863814276,3.99442,2503.5,2502.6,3.99569]
[1724863814277,3.9944,2503.5,2502.6,3.99569]
[1724863814478,0.87887439,2503.6,2502.8,3.99549]
[1724863814479,0.399442,2503.4,2502.8,3.99549]
[1724863814698,3.99445,2503.5,2502.6,3.99569]
[1724863815036,3.99445,2503.5,2502.2,3.3294]
[1724863815037,3.0,2503.4,2502.7,3.99565]
[1724863815241,3.44684241,2503.4,2502.7,3.99565]
[1724863815706,2.3232,2503.7,2502.8,4.07536687]
[1724863816006,2.3232,2503.7,2503.3,3.9947]
[1724863816146,3.99334,2504.2,2503.5,3.99438]
[1724863816147,2.3232,2504.2,2503.5,3.99438]
[1724863816735,0.47319822,2504.1,2503.2,3.99473]
[1724863816988,0.27963982,2504.0,2503.2,3.99473]
[1724863817289,0.27963982,2504.0,2503.2,3.99487]
[1724863817586,4.74646804,2504.0,2502.9,6.37394]
[1724863817799,0.4746468,2503.9,2502.9,3.99524]
[1724863817941,0.4746468,2503.9,2502.6,3.0]
[1724863817942,7.4684168,2503.9,2502.6,3.0]
[1724863818145,3.0,2503.9,2502.9,5.3223168]
[1724863818382,2.3232,2504.2,2503.4,3.99441]
[1724863818626,2.3232,2504.2,2503.7,3.99405]
[1724863818884,2.954817,2504.2,2503.5,4.0742386]
[1724863819066,2.954817,2504.2,2503.1,4.39565]
[1724863819377,6.31664,2504.2,2503.1,0.4007]
[1724863819579,6.31664,2504.2,2503.1,4.39572]
[1724863819780,3.0,2504.1,2503.1,4.39572]
[1724863819962,3.0,2504.1,2502.9,3.99531]
[1724863819963,0.47319822,2504.1,2502.9,3.99531]
[1724863820164,2.3727,2503.4,2502.7,3.99561]
[1724863820336,2.3727,2503.4,2502.2,3.99647]
[1724863820337,3.99537,2502.9,2502.2,3.99647]
[1724863820543,0.40490034,2504.0,2502.2,3.99647]
[1724863820544,0.005,2506.1,2503.4,0.05]
[1724863820791,0.005,2506.1,2504.8,3.9922]
[1724863820792,2.3727,2505.7,2504.8,3.9922]
[1724863820951,2.3727,2505.7,2505.0,9.3143268]
[1724863820952,6.36371,2505.7,2505.0,9.3143268]
[1724863821162,0.005,2506.1,2505.0,17.2983468]
[1724863821463,0.41813298,2505.6,2505.5,3.99121]
[1724863821697,0.58739549,2505.8,2505.1,3.99178]
[1724863821832,0.58239549,2505.6,2504.9,3.9921]
[1724863822037,0.49962403,2505.6,2505.1,3.99177]
[1724863822237,4.40892479,2505.7,2504.6,5.91310713]
[1724863822453,0.58239549,2505.5,2504.7,3.99245]
[1724863822655,4.57365549,2505.5,2504.9,3.99215]
[1724863822973,0.58239549,2505.5,2504.9,3.99215]
[1724863823287,3.99142,2505.4,2504.7,3.99245]
[1724863823454,2.4886,2505.5,2505.0,3.99197]
[1724863823755,2.4886,2505.5,2505.1,3.99184]
[1724863823957,4.40890479,2505.7,2505.2,3.99156]
[1724863823958,0.41800479,2505.7,2505.2,3.99156]
[1724863824195,0.41800479,2505.7,2505.3,0.07981599]
[1724863824356,0.41800479,2505.7,2505.5,3.99121]
[1724863824704,0.41800479,2505.7,2505.1,3.9917]
[1724863824705,4.40890479,2505.7,2505.1,3.9917]
[1724863824926,1.00040028,2505.7,2504.8,3.99223]
[1724863825048,0.41800479,2505.7,2505.3,3.99152]
[1724863825454,0.41800479,2505.7,2505.2,0.07982126]
[1724863825704,6.84600549,2505.6,2504.3,3.99302]
[1724863825885,6.84600549,2505.6,2503.9,2.4652]
[1724863825886,3.99199,2505.1,2503.9,2.4652]
[1724863826069,3.99199,2505.1,2504.4,3.99286]
[1724863826287,3.99229,2504.9,2504.2,3.99322]
[1724863826484,3.99302,2504.4,2503.7,3.99395]
[1724863826709,0.399302,2504.3,2503.8,3.99392]
[1724863826882,0.399302,2504.3,2503.7,3.99395]
[1724863827278,0.399302,2504.3,2503.2,3.99481]
[1724863827279,3.99236,2504.8,2504.0,3.9935]
[1724863827479,2.4256,2504.9,2503.8,3.99389]
[1724863827683,3.99255,2504.7,2503.9,3.99374]
[1724863827884,9.41789,2504.9,2504.1,3.99331]
[1724863828191,0.399199,2505.0,2504.4,3.99284]
[1724863828391,0.399199,2505.0,2504.4,4.07268847]
[1724863828917,0.399199,2505.0,2504.1,7.98671]
[1724863829116,0.399199,2505.0,2504.3,3.99311]
[1724863829337,6.40238,2505.3,2504.3,0.07984841]
[1724863829623,3.99195,2505.1,2504.3,4.07285841]
[1724863829824,3.99195,2505.1,2504.4,3.99281]
[1724863830029,0.58239549,2505.0,2504.1,3.99334]
[1724863830345,6.40242,2505.3,2504.5,3.99271]
[1724863830632,3.992,2505.1,2504.3,7.98611]
[1724863830919,3.992,2505.1,2504.4,4.0728065]
[1724863831263,6.4024,2505.3,2504.4,4.0728065]
[1724863831264,2.4108,2505.3,2504.7,3.99241]
[1724863831518,3.05102,2505.3,2504.4,7.98574]
[1724863831720,3.99216,2505.0,2504.8,0.06789095]
[1724863831929,3.99216,2505.0,2504.2,3.99318]
[1724863832108,3.99216,2505.0,2504.9,0.0653068]
[1724863832109,4.57440549,2505.0,2504.9,0.0653068]
[1724863832328,3.99295,2504.5,2503.8,3.9939]
[1724863832632,3.9927,2504.6,2503.9,4.05993729]
[1724863832778,4.39197,2504.6,2503.9,4.05993729]
[1724863832985,3.0,2504.9,2504.0,0.07986121]
[1724863833235,2.4108,2505.3,2504.1,3.99337]
[1724863833384,3.99245,2504.8,2504.2,3.99328]
[1724863833781,4.23283,2505.2,2504.3,3.993]
[1724863833914,4.23283,2505.2,2504.5,3.9927]
[1724863833915,3.99187,2505.1,2504.5,3.9927]
[1724863834241,3.99203,2505.0,2504.6,0.06570156]
[1724863834402,0.664363,2505.1,2504.5,3.9927]
[1724863834739,3.99109,2505.6,2504.9,3.99208]
[1724863835032,0.67691948,2505.6,2505.0,0.06559601]
[1724863835342,2.77310479,2505.7,2504.3,3.99297]
[1724863835343,3.9922,2504.9,2504.3,3.99297]
[1724863835635,4.790847,2504.8,2504.1,3.99333]
[1724863835838,3.99242,2504.8,2504.1,3.99333]
[1724863836337,2.4879,2505.0,2503.7,3.99398]
[1724863836338,3.99309,2504.4,2503.7,3.99398]
[1724863836529,3.99274,2504.6,2503.7,7.98794]
[1724863836832,4.392084,2504.5,2503.7,3.99394]
[1724863837032,3.99275,2504.6,2503.9,3.99374]
[1724863837330,0.798517,2504.6,2504.1,3.99342]
[1724863837499,0.41817976,2504.7,2504.2,0.0798565]
[1724863837748,0.41817976,2504.7,2504.2,4.0730265]
[1724863837923,0.41817976,2504.7,2504.3,0.07985131]
[1724863838122,2.4601,2505.4,2504.2,3.9932]
[1724863838123,3.99203,2505.0,2504.2,3.9932]
[1724863838335,0.399203,2504.9,2504.2,3.9932]
[1724863838571,0.399203,2504.9,2504.0,4.3942]
[1724863838727,3.9926,2504.7,2504.1,3.9934]
[1724863839071,7.98453,2504.9,2504.1,3.9934]
[1724863839222,3.99222,2504.9,2504.2,3.99327]
[1724863839418,3.99265,2504.6,2504.0,0.4007]
[1724863839622,6.25018,2504.8,2504.0,0.4007]
[1724863839859,3.99208,2505.0,2504.2,3.99328]
[1724863840069,0.41813181,2505.2,2504.4,2.2817]
[1724863840266,0.005,2505.8,2504.9,3.99205]
[1724863840436,0.005,2505.8,2504.5,4.62963427]
[1724863840437,0.41807627,2505.5,2505.4,3.99129]
[1724863840639,0.005,2505.8,2505.4,3.99129]
[1724863840818,0.005,2505.8,2505.3,3.99152]
[1724863841131,0.005,2505.8,2505.5,3.99121]
[1724863841335,0.005,2505.8,2505.3,3.99151]
[1724863841673,3.99093,2505.7,2505.1,7.98353]
[1724863842054,0.649001,2506.0,2505.6,3.99096]
[1724863842368,0.005,2506.6,2505.1,3.99183]
[1724863842369,3.99032,2506.1,2505.5,3.99112]
[1724863842725,3.99014,2506.2,2505.4,3.99125]
[1724863842920,0.44080978,2506.1,2505.5,3.99111]
[1724863843175,0.44080978,2506.1,2505.4,4.07105782]
[1724863843326,3.98985,2506.4,2505.6,3.99096]
[1724863843528,3.99452,2506.6,2505.8,3.99073]
[1724863843900,3.99452,2506.6,2505.9,0.07979565]
[1724863844022,4.41243641,2506.6,2506.0,3.99041]
[1724863844224,5.3113436,2506.6,2506.1,0.07979536]
[1724863844437,0.1232626,2508.5,2506.5,5.91310713]
[1724863844668,3.98338,2510.5,2506.5,5.91310713]
[1724863844669,1.90346413,2510.8,2509.4,72.5604474]
[1724863844965,48.82104123,2534.7,2509.8,0.05]
[1724863844966,0.08647757,2511.0,2509.8,0.05]
[1724863845184,0.08647757,2511.0,2509.7,0.05]
[1724863845365,0.08647757,2511.0,2510.3,0.05]
[1724863845565,0.08647757,2511.0,2508.9,3.98566]
[1724863845566,0.08647757,2511.0,2510.5,0.05]
[1724863845779,3.9827,2510.9,2510.5,0.05]
[1724863845924,4.06898757,2511.0,2510.5,0.05]
[1724863845925,0.08647757,2511.0,2510.8,0.05]
[1724863846121,0.08647757,2511.0,2510.2,0.05]
[1724863846122,4.06909757,2511.0,2510.2,0.05]
[1724863846326,0.08647757,2511.0,2510.4,0.05]
[1724863846541,0.08647757,2511.0,2510.2,0.05]
[1724863846781,3.9833,2510.5,2510.2,0.05]
[1724863846943,0.08647757,2511.0,2510.7,0.05]
[1724863847138,3.9827,2510.9,2510.8,0.05935571]
[1724863847389,0.08647757,2511.0,2510.5,0.05]
[1724863847597,0.08647757,2511.0,2510.7,0.05]
[1724863847756,0.89158133,2511.0,2510.7,0.05]
[1724863848112,0.08647757,2511.0,2510.8,0.05935571]
[1724863848262,3.98079,2512.1,2511.5,0.05]
[1724863848604,4.02819,2513.8,2511.5,0.05]
[1724863848605,0.159677,2513.3,2512.1,0.05]
[1724863848766,0.46110097,2512.8,2511.6,0.0566266]
[1724863848987,0.159677,2513.3,2511.1,3.98228]
[1724863848988,3.98043,2512.3,2511.1,3.98228]
[1724863849169,0.46110097,2513.2,2511.2,0.62961752]
[1724863849370,2.5144626,2513.5,2512.0,3.98089]
[1724863849610,2.5144626,2513.5,2511.6,2.3282]
[1724863849611,0.68268057,2513.4,2511.6,2.3282]
[1724863849831,0.43123431,2513.4,2512.1,0.05349499]
[1724863850003,2.4412,2513.3,2510.8,2.3282]
[1724863850317,3.98178,2511.5,2510.8,2.3282]
[1724863850527,3.98002,2512.6,2510.1,2.3282]
[1724863850528,3.98157,2511.6,2510.1,2.3282]
[1724863850669,3.9817,2511.5,2510.9,0.05287625]
[1724863850872,3.98212,2511.3,2510.1,6.31203]
[1724863851180,3.98248,2511.0,2510.2,3.98373]
[1724863851367,3.98156,2511.6,2510.5,3.98326]
[1724863851571,6.98169,2511.5,2510.6,0.05141321]
[1724863851776,6.98169,2511.5,2510.4,3.98341]
[1724863851976,3.98216,2511.2,2510.4,3.98341]
[1724863852214,0.74196413,2511.4,2510.5,4.03474032]
[1724863852382,0.4379513,2511.6,2510.8,3.98279]
[1724863852383,3.98154,2511.6,2510.8,3.98279]
[1724863852586,4.379694,2511.6,2510.9,4.03374193]
[1724863852781,2.3912,2512.8,2510.9,0.05112193]
[1724863852782,3.9804,2512.4,2510.9,0.05112193]
[1724863852987,3.98164,2511.6,2510.9,0.05112193]
[1724863853301,2.3912,2512.8,2510.9,0.05112193]
[1724863853302,0.45330169,2513.3,2511.3,3.9819]
[1724863853484,2.457,2514.1,2512.0,3.98075]
[1724863853485,3.97916,2513.1,2512.0,3.98075]
[1724863853682,3.97916,2513.1,2512.1,3.9807]
[1724863853683,3.97965,2512.8,2512.1,3.9807]
[1724863853929,3.97998,2512.6,2512.1,0.04644758]
[1724863854234,0.397916,2513.0,2511.4,2.4236]
[1724863854235,3.98014,2512.5,2511.4,2.4236]
[1724863854526,4.378138,2512.5,2512.2,0.04480517]
[1724863854669,3.98075,2512.1,2511.4,2.4236]